[Event "Late-Titled-Tuesday-Blitz-March-26-2024"]
[Site "Chess.com"]
[Date "2024.03.26"]
[Round "9"]
[White "MyDream003"]
[Black "Zkid"]
[Result "1-0"]
[WhiteElo "2809"]
[BlackElo "2906"]
[TimeControl "180+1"]
[EndTime "15:43:34 PDT"]
[Termination "MyDream003 won by resignation"]

1. e4 {[%clk 0:03:00.9]} 1... c6 {[%clk 0:02:59.6]} 2. Nf3 {[%clk 0:02:59.9]}
2... d5 {[%clk 0:02:59.7]} 3. Nc3 {[%clk 0:03:00.7]} 3... Bg4 {[%clk 0:02:57.8]}
4. h3 {[%clk 0:03:00.7]} 4... Bxf3 {[%clk 0:02:57.9]} 5. Qxf3 {[%clk 0:03:01.6]}
5... e6 {[%clk 0:02:58.4]} 6. g3 {[%clk 0:03:00.8]} 6... Nf6 {[%clk 0:02:57.3]}
7. d3 {[%clk 0:02:56.3]} 7... Bb4 {[%clk 0:02:56.6]} 8. Bd2 {[%clk 0:02:55.6]}
8... d4 {[%clk 0:02:56.9]} 9. Nb1 {[%clk 0:02:55.6]} 9... Bxd2+ {[%clk
0:02:57.4]} 10. Nxd2 {[%clk 0:02:56.5]} 10... a5 {[%clk 0:02:57.9]} 11. Bg2
{[%clk 0:02:53.6]} 11... a4 {[%clk 0:02:54.4]} 12. a3 {[%clk 0:02:53.7]} 12...
c5 {[%clk 0:02:50.5]} 13. O-O {[%clk 0:02:41.1]} 13... Nc6 {[%clk 0:02:46.7]}
14. Qe2 {[%clk 0:02:41.5]} 14... e5 {[%clk 0:02:45.2]} 15. f4 {[%clk 0:02:41.9]}
15... Qe7 {[%clk 0:02:40.3]} 16. h4 {[%clk 0:02:40.7]} 16... exf4 {[%clk
0:02:33.9]} 17. gxf4 {[%clk 0:02:40.6]} 17... h5 {[%clk 0:02:34.5]} 18. Bf3
{[%clk 0:02:32.5]} 18... Ng4 {[%clk 0:02:32.8]} 19. Nc4 {[%clk 0:01:52.7]} 19...
Qxh4 {[%clk 0:02:11]} 20. Nd6+ {[%clk 0:01:51.1]} 20... Kf8 {[%clk 0:02:11.1]}
21. Nf5 {[%clk 0:01:34.7]} 21... Qf6 {[%clk 0:02:06.2]} 22. Bxg4 {[%clk
0:01:28.5]} 22... hxg4 {[%clk 0:02:07.1]} 23. Qxg4 {[%clk 0:01:29.3]} 23... Ne7
{[%clk 0:02:02.5]} 24. Nxe7 {[%clk 0:01:24.9]} 24... Kxe7 {[%clk 0:02:02.3]} 25.
Kg2 {[%clk 0:01:14.7]} 25... Rh6 {[%clk 0:02:00.2]} 26. f5 {[%clk 0:01:10.4]}
26... Rah8 {[%clk 0:01:55.9]} 27. Rh1 {[%clk 0:01:08]} 27... Rxh1 {[%clk
0:01:43]} 28. Rxh1 {[%clk 0:01:08.9]} 28... Rxh1 {[%clk 0:01:43.3]} 29. Kxh1
{[%clk 0:01:09.6]} 29... Qh6+ {[%clk 0:01:43.9]} 30. Kg2 {[%clk 0:01:08.3]}
30... Qd2+ {[%clk 0:01:41]} 31. Kg3 {[%clk 0:00:59.4]} 31... Qxc2 {[%clk
0:01:36.5]} 32. Qxg7 {[%clk 0:00:58.4]} 32... Qxd3+ {[%clk 0:01:35.3]} 33. Kf4
{[%clk 0:00:58.9]} 33... Qa6 {[%clk 0:01:29.8]} 34. e5 {[%clk 0:00:51.3]} 34...
d3 {[%clk 0:01:25]} 35. f6+ {[%clk 0:00:51.4]} 35... Kd8 {[%clk 0:01:09.7]} 36.
Qf8+ {[%clk 0:00:49.2]} 36... Kc7 {[%clk 0:01:09.5]} 37. Qxf7+ {[%clk
0:00:49.4]} 37... Kb6 {[%clk 0:00:54.7]} 38. Qe6+ {[%clk 0:00:46.8]} 38... Kb5
{[%clk 0:00:54.7]} 39. Qxa6+ {[%clk 0:00:44.3]} 39... bxa6 {[%clk 0:00:52.7]}
40. Ke3 {[%clk 0:00:44.6]} 1-0

[Event "Late-Titled-Tuesday-Blitz-March-26-2024"]
[Site "Chess.com"]
[Date "2024.03.26"]
[Round "9"]
[White "GoltsevDmitry2000"]
[Black "varunkrishnanchess"]
[Result "1-0"]
[WhiteElo "2794"]
[BlackElo "2633"]
[TimeControl "180+1"]
[EndTime "15:43:34 PDT"]
[Termination "GoltsevDmitry2000 won by resignation"]

1. e4 {[%clk 0:02:10.9]} 1... c5 {[%clk 0:02:55.9]} 2. Nf3 {[%clk 0:02:10.7]}
2... e6 {[%clk 0:02:56.5]} 3. b3 {[%clk 0:02:10.4]} 3... Nc6 {[%clk 0:02:55.3]}
4. Bb2 {[%clk 0:02:10.4]} 4... a6 {[%clk 0:02:55.7]} 5. d4 {[%clk 0:02:10.1]}
5... cxd4 {[%clk 0:02:55.7]} 6. Nxd4 {[%clk 0:02:11]} 6... Nf6 {[%clk
0:02:54.9]} 7. Nd2 {[%clk 0:02:10.5]} 7... Bc5 {[%clk 0:02:52]} 8. c3 {[%clk
0:02:07.7]} 8... O-O {[%clk 0:02:50.2]} 9. Be2 {[%clk 0:02:07.3]} 9... e5 {[%clk
0:02:42.5]} 10. Nc2 {[%clk 0:02:00.2]} 10... d6 {[%clk 0:02:34.2]} 11. O-O
{[%clk 0:01:59.3]} 11... Be6 {[%clk 0:02:33.6]} 12. Ne3 {[%clk 0:01:57.1]} 12...
Bxe3 {[%clk 0:02:15]} 13. fxe3 {[%clk 0:01:58]} 13... Qb6 {[%clk 0:02:15]} 14.
Rf3 {[%clk 0:01:50.9]} 14... d5 {[%clk 0:02:10.8]} 15. exd5 {[%clk 0:01:47]}
15... Bxd5 {[%clk 0:02:05.6]} 16. Rh3 {[%clk 0:01:44.7]} 16... Be6 {[%clk
0:01:59.5]} 17. Rg3 {[%clk 0:01:41]} 17... Rad8 {[%clk 0:01:58.9]} 18. Qe1
{[%clk 0:01:37.5]} 18... Rxd2 {[%clk 0:01:55]} 19. Qxd2 {[%clk 0:01:38.4]} 19...
Ne4 {[%clk 0:01:54.5]} 20. Qe1 {[%clk 0:01:36.1]} 20... Nxg3 {[%clk 0:01:49.1]}
21. Qxg3 {[%clk 0:01:37]} 21... f5 {[%clk 0:01:47]} 22. Qf2 {[%clk 0:01:32.2]}
22... a5 {[%clk 0:01:27]} 23. Rd1 {[%clk 0:01:25.5]} 23... e4 {[%clk 0:01:19.4]}
24. Rd6 {[%clk 0:01:23.7]} 24... Bc8 {[%clk 0:01:12.7]} 25. c4 {[%clk
0:01:20.3]} 25... a4 {[%clk 0:01:07.3]} 26. Qg3 {[%clk 0:01:12.8]} 26... Rf7
{[%clk 0:00:54.5]} 27. c5 {[%clk 0:01:11.8]} 27... Qxc5 {[%clk 0:00:40.7]} 28.
Bc4 {[%clk 0:01:11.8]} 28... g6 {[%clk 0:00:28.1]} 29. Rxg6+ {[%clk 0:01:07.4]}
29... Kf8 {[%clk 0:00:24.6]} 30. Rg8+ {[%clk 0:01:04.1]} 30... Ke7 {[%clk
0:00:24.9]} 31. Bxf7 {[%clk 0:01:03.3]} 31... Kxf7 {[%clk 0:00:20.9]} 32. Rxc8
{[%clk 0:01:02.7]} 32... axb3 {[%clk 0:00:18]} 33. Qg8+ {[%clk 0:01:00.3]} 33...
Ke7 {[%clk 0:00:17.1]} 34. Qf8+ {[%clk 0:01:00.1]} 34... Ke6 {[%clk 0:00:17.7]}
35. Qxc5 {[%clk 0:01:00.4]} 1-0

[Event "Late-Titled-Tuesday-Blitz-March-26-2024"]
[Site "Chess.com"]
[Date "2024.03.26"]
[Round "9"]
[White "AryanTari"]
[Black "promen1999"]
[Result "0-1"]
[WhiteElo "2977"]
[BlackElo "2858"]
[TimeControl "180+1"]
[EndTime "15:43:39 PDT"]
[Termination "promen1999 won by resignation"]

1. e4 {[%clk 0:02:57.5]} 1... d6 {[%clk 0:02:56.8]} 2. d4 {[%clk 0:02:56.9]}
2... g6 {[%clk 0:02:56.6]} 3. Nf3 {[%clk 0:02:56.5]} 3... Bg7 {[%clk 0:02:56.8]}
4. Nc3 {[%clk 0:02:55.4]} 4... a6 {[%clk 0:02:55.7]} 5. Be2 {[%clk 0:02:54.7]}
5... b5 {[%clk 0:02:54]} 6. O-O {[%clk 0:02:53.3]} 6... Bb7 {[%clk 0:02:53.7]}
7. e5 {[%clk 0:02:47.3]} 7... b4 {[%clk 0:02:44.1]} 8. e6 {[%clk 0:02:44.1]}
8... f5 {[%clk 0:02:27.8]} 9. Na4 {[%clk 0:02:32.6]} 9... Nf6 {[%clk 0:02:25.6]}
10. Ng5 {[%clk 0:02:21.7]} 10... O-O {[%clk 0:02:24.9]} 11. Bf3 {[%clk
0:02:21.8]} 11... Nc6 {[%clk 0:01:54.9]} 12. c4 {[%clk 0:02:11.1]} 12... bxc3
{[%clk 0:01:44.8]} 13. bxc3 {[%clk 0:02:10.4]} 13... Qc8 {[%clk 0:01:45]} 14.
Rb1 {[%clk 0:02:03.5]} 14... Rb8 {[%clk 0:01:45.4]} 15. Re1 {[%clk 0:01:50.3]}
15... Na5 {[%clk 0:01:43.5]} 16. d5 {[%clk 0:01:36.2]} 16... c6 {[%clk
0:01:43.2]} 17. Nb6 {[%clk 0:01:31.9]} 17... Qc7 {[%clk 0:01:43]} 18. Qa4 {[%clk
0:01:29.9]} 18... Nxd5 {[%clk 0:01:29.8]} 19. Bxd5 {[%clk 0:01:23]} 19... cxd5
{[%clk 0:01:29.4]} 20. Qxa5 {[%clk 0:01:06.2]} 20... Bxc3 {[%clk 0:01:28]} 21.
Qa3 {[%clk 0:01:06.4]} 21... Bxe1 {[%clk 0:01:20.9]} 22. Bb2 {[%clk 0:00:50.4]}
22... Bxf2+ {[%clk 0:01:13.4]} 23. Kxf2 {[%clk 0:00:47.9]} 23... Qxb6+ {[%clk
0:01:13.7]} 24. Kg3 {[%clk 0:00:38.4]} 24... d4 {[%clk 0:01:12.9]} 25. Nf7
{[%clk 0:00:10.6]} 25... Be4 {[%clk 0:01:02]} 26. Qa4 {[%clk 0:00:07.2]} 26...
Rxf7 {[%clk 0:00:47.5]} 27. exf7+ {[%clk 0:00:07.2]} 27... Kxf7 {[%clk
0:00:47.8]} 0-1

[Event "Late-Titled-Tuesday-Blitz-March-26-2024"]
[Site "Chess.com"]
[Date "2024.03.26"]
[Round "9"]
[White "vladoboch"]
[Black "Xavier_mompel"]
[Result "1-0"]
[WhiteElo "2490"]
[BlackElo "2349"]
[TimeControl "180+1"]
[EndTime "15:43:42 PDT"]
[Termination "vladoboch won by resignation"]

1. h4 {[%clk 0:03:00.9]} 1... d5 {[%clk 0:02:59.1]} 2. g3 {[%clk 0:03:01]} 2...
e5 {[%clk 0:02:59.1]} 3. Bg2 {[%clk 0:03:01.7]} 3... Nf6 {[%clk 0:02:59.6]} 4.
b3 {[%clk 0:03:02]} 4... c5 {[%clk 0:02:56.5]} 5. Bb2 {[%clk 0:03:02.5]} 5...
Nc6 {[%clk 0:02:56]} 6. c4 {[%clk 0:03:00.6]} 6... d4 {[%clk 0:02:55.5]} 7. d3
{[%clk 0:03:01]} 7... Be7 {[%clk 0:02:54.7]} 8. Nd2 {[%clk 0:03:01.6]} 8... Be6
{[%clk 0:02:53.2]} 9. Nh3 {[%clk 0:03:01.1]} 9... O-O {[%clk 0:02:50.8]} 10. Ng5
{[%clk 0:03:00.4]} 10... Bf5 {[%clk 0:02:49.1]} 11. O-O {[%clk 0:02:56.8]} 11...
h6 {[%clk 0:02:48.2]} 12. Nge4 {[%clk 0:02:56.3]} 12... Nxe4 {[%clk 0:02:47.8]}
13. Nxe4 {[%clk 0:02:56.5]} 13... Be6 {[%clk 0:02:46.9]} 14. Ba3 {[%clk
0:02:53.3]} 14... Qa5 {[%clk 0:02:39.4]} 15. Bc1 {[%clk 0:02:46.7]} 15... f5
{[%clk 0:02:37.7]} 16. Nd2 {[%clk 0:02:45.2]} 16... Qc7 {[%clk 0:02:31.3]} 17.
a3 {[%clk 0:02:34.7]} 17... g5 {[%clk 0:02:30.2]} 18. hxg5 {[%clk 0:02:32.8]}
18... hxg5 {[%clk 0:02:31.1]} 19. b4 {[%clk 0:02:31.5]} 19... cxb4 {[%clk
0:02:24.8]} 20. axb4 {[%clk 0:02:32]} 20... Nxb4 {[%clk 0:02:24.8]} 21. Rb1
{[%clk 0:02:28]} 21... Rab8 {[%clk 0:02:11.7]} 22. Qa4 {[%clk 0:02:23.8]} 22...
Na6 {[%clk 0:01:53.4]} 23. Nf3 {[%clk 0:02:16.7]} 23... g4 {[%clk 0:01:36.7]}
24. Nxe5 {[%clk 0:02:04.9]} 24... Qxe5 {[%clk 0:01:25.1]} 25. Bf4 {[%clk
0:02:05.4]} 25... Qc5 {[%clk 0:01:09.5]} 26. Bxb8 {[%clk 0:01:52]} 26... Rxb8
{[%clk 0:01:07.8]} 27. Rb5 {[%clk 0:01:48.8]} 27... Qc7 {[%clk 0:00:58.1]} 28.
Rfb1 {[%clk 0:01:41.9]} 28... Bd7 {[%clk 0:00:53.1]} 29. Qa2 {[%clk 0:01:21.3]}
29... Nc5 {[%clk 0:00:36.2]} 30. R5b2 {[%clk 0:01:12.2]} 30... b6 {[%clk
0:00:35.4]} 31. Ra1 {[%clk 0:00:51.2]} 31... a5 {[%clk 0:00:29.7]} 32. Qb1
{[%clk 0:00:49.3]} 32... a4 {[%clk 0:00:26.5]} 33. Qc1 {[%clk 0:00:44.1]} 33...
Nb3 {[%clk 0:00:26.7]} 34. Qh6 {[%clk 0:00:43.3]} 34... Nxa1 {[%clk 0:00:25.5]}
35. Bd5+ {[%clk 0:00:44]} 1-0

[Event "Late-Titled-Tuesday-Blitz-March-26-2024"]
[Site "Chess.com"]
[Date "2024.03.26"]
[Round "9"]
[White "Shahdad2007"]
[Black "DinaBelenkaya"]
[Result "1-0"]
[WhiteElo "2622"]
[BlackElo "2493"]
[TimeControl "180+1"]
[EndTime "15:43:43 PDT"]
[Termination "Shahdad2007 won by resignation"]

1. Nf3 {[%clk 0:02:52.8]} 1... d5 {[%clk 0:02:59.8]} 2. g3 {[%clk 0:02:50.9]}
2... Nf6 {[%clk 0:02:58.3]} 3. Bg2 {[%clk 0:02:50.1]} 3... c6 {[%clk 0:02:54.3]}
4. d4 {[%clk 0:02:47.8]} 4... g6 {[%clk 0:02:54.6]} 5. O-O {[%clk 0:02:46.2]}
5... Bg7 {[%clk 0:02:54.8]} 6. c4 {[%clk 0:02:43.3]} 6... O-O {[%clk 0:02:54.3]}
7. a4 {[%clk 0:02:43.5]} 7... a5 {[%clk 0:02:47.5]} 8. Qb3 {[%clk 0:02:28.1]}
8... Na6 {[%clk 0:02:46.2]} 9. Na3 {[%clk 0:02:27.1]} 9... Nb4 {[%clk
0:02:45.6]} 10. Bd2 {[%clk 0:02:27]} 10... Ne4 {[%clk 0:02:12.3]} 11. Bxb4
{[%clk 0:02:23.9]} 11... axb4 {[%clk 0:02:13.2]} 12. Qxb4 {[%clk 0:02:23.2]}
12... dxc4 {[%clk 0:01:51.7]} 13. Nxc4 {[%clk 0:01:36.8]} 13... Bxd4 {[%clk
0:01:36.6]} 14. Rad1 {[%clk 0:01:23.8]} 14... Bxf2+ {[%clk 0:01:32.2]} 15. Kh1
{[%clk 0:01:19.6]} 15... Qc7 {[%clk 0:01:20.6]} 16. Nce5 {[%clk 0:01:07.5]}
16... Bxg3 {[%clk 0:00:58.6]} 17. Qxe4 {[%clk 0:01:02.6]} 17... Bf5 {[%clk
0:00:55.5]} 18. Qe3 {[%clk 0:01:01.3]} 18... Bxe5 {[%clk 0:00:52.5]} 19. Nxe5
{[%clk 0:01:01]} 19... f6 {[%clk 0:00:50.5]} 20. Nf3 {[%clk 0:00:53.6]} 20... e5
{[%clk 0:00:50.6]} 21. b3 {[%clk 0:00:46.3]} 21... Be6 {[%clk 0:00:47.1]} 22.
Nd2 {[%clk 0:00:46.3]} 22... Bd5 {[%clk 0:00:42.2]} 23. Ne4 {[%clk 0:00:46.1]}
23... Kg7 {[%clk 0:00:39.2]} 24. Nc5 {[%clk 0:00:45.7]} 24... Bxg2+ {[%clk
0:00:23.4]} 25. Kxg2 {[%clk 0:00:46.6]} 25... Qe7 {[%clk 0:00:23.6]} 26. Rd7
{[%clk 0:00:44.2]} 26... Rf7 {[%clk 0:00:23.2]} 27. Rxe7 {[%clk 0:00:41.2]}
27... Rxe7 {[%clk 0:00:24.1]} 28. Ne4 {[%clk 0:00:39.4]} 28... Rg8 {[%clk
0:00:23.3]} 29. Nxf6 {[%clk 0:00:38.5]} 29... Rf8 {[%clk 0:00:23.5]} 30. Nh5+
{[%clk 0:00:37.7]} 30... gxh5 {[%clk 0:00:22.8]} 31. Qg5+ {[%clk 0:00:37.7]} 1-0

[Event "Late-Titled-Tuesday-Blitz-March-26-2024"]
[Site "Chess.com"]
[Date "2024.03.26"]
[Round "9"]
[White "RebelJohnny"]
[Black "CMmauricio"]
[Result "0-1"]
[WhiteElo "2600"]
[BlackElo "2757"]
[TimeControl "180+1"]
[EndTime "15:43:44 PDT"]
[Termination "CMmauricio won by resignation"]

1. e4 {[%clk 0:03:00.9]} 1... e6 {[%clk 0:03:00.9]} 2. d4 {[%clk 0:03:00.1]}
2... d5 {[%clk 0:03:01]} 3. Nc3 {[%clk 0:02:59.6]} 3... Bb4 {[%clk 0:03:00.5]}
4. e5 {[%clk 0:02:56.2]} 4... c5 {[%clk 0:03:01]} 5. a3 {[%clk 0:02:53.9]} 5...
Bxc3+ {[%clk 0:03:01.3]} 6. bxc3 {[%clk 0:02:53.5]} 6... Ne7 {[%clk 0:03:01.9]}
7. Qg4 {[%clk 0:02:52.3]} 7... O-O {[%clk 0:03:02.2]} 8. Bd3 {[%clk 0:02:32.4]}
8... f5 {[%clk 0:02:53.7]} 9. exf6 {[%clk 0:02:24.3]} 9... Rxf6 {[%clk
0:02:52.4]} 10. Bg5 {[%clk 0:02:25]} 10... Rf7 {[%clk 0:02:52.6]} 11. Qh5 {[%clk
0:02:25.1]} 11... g6 {[%clk 0:02:51.8]} 12. Qd1 {[%clk 0:02:25.3]} 12... Qa5
{[%clk 0:02:52.2]} 13. Nf3 {[%clk 0:02:23.1]} 13... Nbc6 {[%clk 0:02:50.4]} 14.
Qd2 {[%clk 0:02:14.5]} 14... c4 {[%clk 0:02:49.7]} 15. Be2 {[%clk 0:02:13]}
15... Nf5 {[%clk 0:02:50.1]} 16. Ne5 {[%clk 0:02:13.2]} 16... Nxe5 {[%clk
0:02:44.7]} 17. dxe5 {[%clk 0:02:14.1]} 17... Bd7 {[%clk 0:02:44.8]} 18. O-O
{[%clk 0:02:09.5]} 18... Ba4 {[%clk 0:02:44.8]} 19. g4 {[%clk 0:01:56.2]} 19...
Ng7 {[%clk 0:02:34.9]} 20. Rab1 {[%clk 0:01:51.1]} 20... b6 {[%clk 0:02:33.5]}
21. h4 {[%clk 0:01:45.1]} 21... Qc5 {[%clk 0:02:26.2]} 22. Be3 {[%clk 0:01:24]}
22... Qe7 {[%clk 0:02:16.2]} 23. Kg2 {[%clk 0:01:17.3]} 23... Raf8 {[%clk
0:02:14.6]} 24. Qd4 {[%clk 0:01:07.7]} 24... h5 {[%clk 0:02:08.9]} 25. gxh5
{[%clk 0:00:55.1]} 25... gxh5 {[%clk 0:02:06.5]} 26. Bg5 {[%clk 0:00:42.5]}
26... Qd7 {[%clk 0:02:03.3]} 27. Bf6 {[%clk 0:00:36.7]} 27... Bxc2 {[%clk
0:02:01.2]} 28. Rbc1 {[%clk 0:00:34.6]} 28... Bg6 {[%clk 0:01:59.3]} 29. Kh2
{[%clk 0:00:28.4]} 29... Qc7 {[%clk 0:01:58.6]} 30. f4 {[%clk 0:00:27.2]} 30...
Nf5 {[%clk 0:01:57.2]} 31. Qf2 {[%clk 0:00:25.8]} 31... Rxf6 {[%clk 0:01:53.6]}
32. exf6 {[%clk 0:00:26.7]} 32... Rxf6 {[%clk 0:01:54.4]} 33. Rg1 {[%clk
0:00:27]} 33... Kh7 {[%clk 0:01:54.4]} 34. Rg5 {[%clk 0:00:27.2]} 34... Ng7
{[%clk 0:01:54.8]} 35. Rf1 {[%clk 0:00:21.6]} 35... Qf7 {[%clk 0:01:41.8]} 36.
Qd4 {[%clk 0:00:21.5]} 36... Nf5 {[%clk 0:01:40.7]} 37. Qe5 {[%clk 0:00:20.7]}
37... Nxh4 {[%clk 0:01:36.6]} 38. Bxh5 {[%clk 0:00:17.3]} 38... Nf5 {[%clk
0:01:37.1]} 39. Bxg6+ {[%clk 0:00:14]} 39... Rxg6 {[%clk 0:01:38]} 40. Rfg1
{[%clk 0:00:09.6]} 40... Rh6+ {[%clk 0:01:26.1]} 41. Kg2 {[%clk 0:00:09.5]}
41... Nh4+ {[%clk 0:01:23.4]} 42. Kf2 {[%clk 0:00:09.5]} 42... Ng6 {[%clk
0:01:22.5]} 43. Ke1 {[%clk 0:00:05.5]} 43... Nxe5 {[%clk 0:01:18.1]} 0-1

[Event "Late-Titled-Tuesday-Blitz-March-26-2024"]
[Site "Chess.com"]
[Date "2024.03.26"]
[Round "9"]
[White "Chesstiger64"]
[Black "karinachess1"]
[Result "0-1"]
[WhiteElo "2403"]
[BlackElo "2572"]
[TimeControl "180+1"]
[EndTime "15:43:47 PDT"]
[Termination "karinachess1 won by resignation"]

1. d4 {[%clk 0:03:00.9]} 1... Nf6 {[%clk 0:02:59.9]} 2. Nf3 {[%clk 0:03:00.9]}
2... e6 {[%clk 0:03:00.1]} 3. e3 {[%clk 0:02:59.6]} 3... d5 {[%clk 0:03:00.7]}
4. Bd3 {[%clk 0:02:58.9]} 4... Be7 {[%clk 0:03:01.4]} 5. Nbd2 {[%clk 0:02:58.9]}
5... O-O {[%clk 0:03:02]} 6. Qe2 {[%clk 0:02:58.8]} 6... c5 {[%clk 0:03:01]} 7.
c3 {[%clk 0:02:59]} 7... Nc6 {[%clk 0:03:00.5]} 8. O-O {[%clk 0:02:58.6]} 8...
Qd6 {[%clk 0:02:55.6]} 9. dxc5 {[%clk 0:02:56.2]} 9... Qxc5 {[%clk 0:02:55]} 10.
e4 {[%clk 0:02:56.6]} 10... dxe4 {[%clk 0:02:45.9]} 11. Nxe4 {[%clk 0:02:56.1]}
11... Qh5 {[%clk 0:02:45.9]} 12. Ng3 {[%clk 0:02:53.9]} 12... Qa5 {[%clk
0:02:38.9]} 13. a3 {[%clk 0:02:46.1]} 13... e5 {[%clk 0:02:36.7]} 14. b4 {[%clk
0:02:45]} 14... Qc7 {[%clk 0:02:36.2]} 15. Nf5 {[%clk 0:02:41.5]} 15... Re8
{[%clk 0:02:24.3]} 16. Nxe7+ {[%clk 0:02:41]} 16... Qxe7 {[%clk 0:02:25.2]} 17.
Ng5 {[%clk 0:02:34.6]} 17... e4 {[%clk 0:02:17.8]} 18. Bc4 {[%clk 0:02:34.4]}
18... Ne5 {[%clk 0:02:16.3]} 19. Bb3 {[%clk 0:02:27.1]} 19... Bf5 {[%clk
0:02:15.4]} 20. f4 {[%clk 0:02:21.6]} 20... exf3 {[%clk 0:02:06.4]} 21. Nxf3
{[%clk 0:02:21.6]} 21... Qc7 {[%clk 0:01:26.6]} 22. Nxe5 {[%clk 0:02:13.7]}
22... Rxe5 {[%clk 0:01:27.5]} 23. Bf4 {[%clk 0:02:00.2]} 23... Rxe2 {[%clk
0:01:19.5]} 24. Bxc7 {[%clk 0:01:59.3]} 24... Rc8 {[%clk 0:01:20]} 25. Rxf5
{[%clk 0:01:42.6]} 25... Rxc7 {[%clk 0:01:18.4]} 26. Rd1 {[%clk 0:01:43.2]}
26... h5 {[%clk 0:01:12.1]} 27. c4 {[%clk 0:01:40.7]} 27... Rb2 {[%clk
0:01:10.1]} 28. Rf3 {[%clk 0:01:39.1]} 28... Re7 {[%clk 0:01:07.2]} 29. h3
{[%clk 0:01:13.5]} 29... Ree2 {[%clk 0:01:02.1]} 30. Rg3 {[%clk 0:01:13.4]}
30... Ne4 {[%clk 0:00:58.9]} 31. Rdd3 {[%clk 0:00:53.4]} 31... Nxg3 {[%clk
0:00:55.8]} 32. Rxg3 {[%clk 0:00:54.3]} 32... h4 {[%clk 0:00:56.5]} 33. Rf3
{[%clk 0:00:52.2]} 33... Rxg2+ {[%clk 0:00:56.8]} 34. Kf1 {[%clk 0:00:52.6]}
34... Rg3 {[%clk 0:00:54.7]} 35. Rxg3 {[%clk 0:00:51.5]} 35... hxg3 {[%clk
0:00:55.6]} 36. Ba4 {[%clk 0:00:51.1]} 36... Ra2 {[%clk 0:00:51.2]} 37. c5
{[%clk 0:00:50]} 37... Rxa3 {[%clk 0:00:51.5]} 38. Bd7 {[%clk 0:00:49.8]} 38...
Rb3 {[%clk 0:00:47.5]} 39. b5 {[%clk 0:00:50.2]} 39... Rc3 {[%clk 0:00:45.9]}
40. c6 {[%clk 0:00:49.1]} 40... bxc6 {[%clk 0:00:46.2]} 41. bxc6 {[%clk
0:00:49.2]} 41... Kf8 {[%clk 0:00:46.5]} 42. Kg2 {[%clk 0:00:49.1]} 42... Ke7
{[%clk 0:00:46.8]} 43. h4 {[%clk 0:00:49]} 43... Kd6 {[%clk 0:00:46.9]} 44. h5
{[%clk 0:00:49.6]} 44... a5 {[%clk 0:00:46.1]} 45. h6 {[%clk 0:00:50.5]} 45...
gxh6 {[%clk 0:00:45.8]} 46. c7 {[%clk 0:00:49.5]} 46... Kxd7 {[%clk 0:00:44.8]}
0-1

[Event "Late-Titled-Tuesday-Blitz-March-26-2024"]
[Site "Chess.com"]
[Date "2024.03.26"]
[Round "9"]
[White "bilelou"]
[Black "hellokostya"]
[Result "1-0"]
[WhiteElo "2709"]
[BlackElo "2595"]
[TimeControl "180+1"]
[EndTime "15:43:49 PDT"]
[Termination "bilelou won by resignation"]

1. e4 {[%clk 0:02:57.2]} 1... c5 {[%clk 0:02:59.2]} 2. Nf3 {[%clk 0:02:53.7]}
2... Nc6 {[%clk 0:02:59.4]} 3. b4 {[%clk 0:02:50.5]} 3... Nxb4 {[%clk
0:02:46.3]} 4. c3 {[%clk 0:02:49]} 4... Nc6 {[%clk 0:02:45.6]} 5. d4 {[%clk
0:02:49.9]} 5... d5 {[%clk 0:02:41.5]} 6. exd5 {[%clk 0:02:49.5]} 6... Qxd5
{[%clk 0:02:41.1]} 7. Na3 {[%clk 0:02:50]} 7... Bg4 {[%clk 0:02:34]} 8. Be2
{[%clk 0:02:48.8]} 8... Nf6 {[%clk 0:02:29.8]} 9. Rb1 {[%clk 0:02:43]} 9... Qd7
{[%clk 0:02:26]} 10. Nc4 {[%clk 0:02:06.7]} 10... e6 {[%clk 0:02:19.5]} 11. Nce5
{[%clk 0:01:59.4]} 11... Nxe5 {[%clk 0:02:18.6]} 12. Nxe5 {[%clk 0:02:00.3]}
12... Bxe2 {[%clk 0:02:17.5]} 13. Qxe2 {[%clk 0:02:00.7]} 13... Qc7 {[%clk
0:02:08.8]} 14. Qb5+ {[%clk 0:01:58.4]} 14... Nd7 {[%clk 0:02:05.3]} 15. Qxd7+
{[%clk 0:01:22.3]} 15... Qxd7 {[%clk 0:02:06.2]} 16. Nxd7 {[%clk 0:01:22.6]}
16... Kxd7 {[%clk 0:02:06.4]} 17. Rxb7+ {[%clk 0:01:22.9]} 17... Ke8 {[%clk
0:01:52.1]} 18. Be3 {[%clk 0:01:21.9]} 18... cxd4 {[%clk 0:01:46.4]} 19. Bxd4
{[%clk 0:01:22.8]} 19... Bd6 {[%clk 0:01:39.5]} 20. Ke2 {[%clk 0:01:02.4]} 20...
Kf8 {[%clk 0:01:35.2]} 21. Rd7 {[%clk 0:00:52.5]} 21... Ba3 {[%clk 0:01:33.5]}
22. Rb1 {[%clk 0:00:51.1]} 22... Kg8 {[%clk 0:01:05.5]} 23. Rxa7 {[%clk
0:00:24.5]} 23... Rxa7 {[%clk 0:00:58.4]} 24. Rb8+ {[%clk 0:00:24.3]} 24... Bf8
{[%clk 0:00:58]} 25. Bxa7 {[%clk 0:00:23.8]} 25... f6 {[%clk 0:00:53.2]} 26. Bc5
{[%clk 0:00:18]} 26... Kf7 {[%clk 0:00:53]} 27. Rxf8+ {[%clk 0:00:17.5]} 27...
Rxf8 {[%clk 0:00:53.9]} 28. Bxf8 {[%clk 0:00:17.5]} 28... Kxf8 {[%clk
0:00:54.8]} 29. Kd3 {[%clk 0:00:15.9]} 29... Ke7 {[%clk 0:00:55.4]} 30. Kc4
{[%clk 0:00:16.2]} 30... Kd6 {[%clk 0:00:55.5]} 31. Kb5 {[%clk 0:00:16.6]} 31...
e5 {[%clk 0:00:54.7]} 32. c4 {[%clk 0:00:16.1]} 32... f5 {[%clk 0:00:54.9]} 33.
c5+ {[%clk 0:00:16.4]} 33... Kc7 {[%clk 0:00:54.2]} 34. c6 {[%clk 0:00:14.8]}
34... e4 {[%clk 0:00:53.2]} 35. Kc5 {[%clk 0:00:14.1]} 35... f4 {[%clk
0:00:50.7]} 36. Kd4 {[%clk 0:00:13.4]} 36... e3 {[%clk 0:00:48.3]} 37. fxe3
{[%clk 0:00:13.9]} 37... fxe3 {[%clk 0:00:49.2]} 38. Kxe3 {[%clk 0:00:14.3]} 1-0